bitfinex/quotes_ETHUSD_20220308
["timestamp","ask_amount","ask_price","bid_price","bid_amount"]
[1646760840042,0.06920604,2595.4,2594.4,0.3892]
[1646760840043,0.06920604,2595.4,2594.8,1.9279514]
[1646760840469,0.06920604,2595.4,2594.9,1.20747149]
[1646760840669,0.06920604,2595.4,2595.3,0.92980452]
[1646760841168,0.06920604,2595.4,2595.2,0.468]
[1646760841370,0.06920604,2595.4,2594.9,0.468]
[1646760841768,0.06920604,2595.4,2594.8,1.9279514]
[1646760841971,0.06920604,2595.4,2594.9,0.468]
[1646760842168,0.06920604,2595.4,2595.3,1.09974746]
[1646760842772,0.06920604,2595.4,2595.3,1.56774746]
[1646760843374,0.00822169,2595.5,2595.4,0.0691]
[1646760843375,0.00411088,2595.5,2595.4,0.0691]
[1646760843572,1.088e-05,2595.5,2595.4,0.5371]
[1646760843774,0.02941004,2595.8,2595.6,6.0]
[1646760844019,0.02941004,2595.8,2595.7,0.468]
[1646760844519,0.02941004,2595.8,2595.7,1.67085197]
[1646760845520,1.004e-05,2595.8,2595.7,2.06005197]
[1646760845722,1.004e-05,2595.8,2595.7,1.67085197]
[1646760846521,4.732e-05,2596.1,2596.0,6.0]
[1646760846724,0.12343822,2596.1,2596.0,10.9312886]
[1646760846922,0.12343822,2596.1,2596.0,7.4312886]
[1646760847125,0.12343822,2596.1,2596.0,10.9312886]
[1646760847321,0.01149062,2596.1,2596.0,7.4312886]
[1646760847524,0.01731476,2596.4,2596.3,6.0]
[1646760847767,0.01731476,2596.4,2596.3,0.468]
[1646760848161,0.01731476,2596.4,2596.3,0.29081163]
[1646760850166,0.03562508,2596.4,2596.3,0.29081163]
[1646760851813,0.06658729,2596.6,2596.3,0.29081163]
[1646760852013,0.06658729,2596.6,2596.0,0.0048914]
[1646760852614,1.92706,2596.5,2596.0,0.9683652]
[1646760852814,1.03010729,2596.6,2596.1,0.468]
[1646760853816,1.03010729,2596.6,2596.5,0.96383373]
[1646760854015,1.99358729,2596.6,2596.5,0.96383373]
[1646760854215,1.99358729,2596.6,2596.4,0.9634167]
[1646760854417,1.99358729,2596.6,2596.1,0.468]
[1646760854615,1.99358729,2596.6,2596.1,0.622289]
[1646760855016,1.99358729,2596.6,2596.1,0.468]
[1646760855266,1.99358729,2596.6,2596.2,0.00367303]
[1646760855467,1.03010729,2596.6,2596.2,0.00367303]
[1646760856369,5.49357729,2596.6,2596.1,0.9634912]
[1646760856567,5.49357729,2596.6,2596.2,0.00489106]
[1646760856568,4.53416667,2596.6,2596.2,0.00489106]
[1646760856767,3.0,2596.5,2596.2,0.00489106]
[1646760856967,0.96383,2596.1,2594.9,0.468]
[1646760857170,0.3892,2595.9,2594.8,0.9640016]
[1646760857374,0.3892,2595.9,2594.5,9.8976]
[1646760857375,0.90273872,2595.3,2594.5,10.96302945]
[1646760857567,0.96411,2595.2,2594.3,5.4281381]
[1646760857770,0.96411,2595.2,2594.4,0.468]
[1646760858368,0.91411,2595.2,2594.4,0.468]
[1646760858570,0.96411,2595.1,2594.5,0.9640558]
[1646760858771,0.96404,2594.9,2594.5,0.9640558]
[1646760859215,0.97434521,2594.9,2594.5,0.9640558]
[1646760859415,0.97434521,2594.9,2594.6,0.95750494]
[1646760859618,1.93838521,2594.9,2594.6,0.95750494]
[1646760860120,1.93838521,2594.9,2594.6,0.96117471]
[1646760860720,1.93838521,2594.9,2594.6,1.42917471]
[1646760860920,1.93838521,2594.9,2594.7,3.0277684]
[1646760861122,3.85589,2595.8,2594.9,1.4892]
[1646760861322,1.92741,2596.1,2595.1,1.1]
[1646760861520,1.92741,2596.1,2595.3,1.1]
[1646760861722,1.92741,2596.1,2595.2,3.968]
[1646760861723,1.92741,2596.1,2595.5,1.1]
[1646760861924,0.96368,2596.1,2595.6,1.1]
[1646760862120,0.96368,2596.1,2595.9,0.90862479]
[1646760862321,0.96368,2596.1,2596.0,1.1]
[1646760862964,0.96368,2596.1,2595.7,0.00488987]
[1646760863166,0.96368,2596.1,2595.7,0.0030777]
[1646760863368,0.96368,2596.1,2595.7,1.00610177]
[1646760863566,0.96368,2596.1,2595.7,1.47410177]
[1646760863767,1.92736,2596.3,2595.9,0.00366486]
[1646760863966,0.9633,2596.4,2596.0,0.8572]
[1646760864571,0.9633,2596.4,2596.1,0.96277056]
[1646760864770,0.9633,2596.4,2596.2,0.468]
[1646760864969,0.9633,2596.4,2596.3,1.1]
[1646760865171,0.9633,2596.4,2596.3,1.568]
[1646760865376,0.3,2596.5,2596.3,1.568]
[1646760865575,0.0572993,2596.6,2596.3,1.568]
[1646760865783,0.0572993,2596.6,2596.4,1.1]
[1646760866175,0.01137557,2596.6,2596.0,3.3577157]
[1646760867016,0.01137557,2596.6,2596.2,0.9634543]
[1646760867017,0.96352,2596.5,2596.2,0.9634543]
[1646760867216,0.96352,2596.5,2596.0,3.3577157]
[1646760867217,0.96352,2596.5,2596.0,0.468]
[1646760867620,0.96352,2596.5,2595.7,1.9270744]
[1646760867821,1.35272,2596.5,2595.7,1.9270744]
[1646760868022,4.24346,2596.5,2595.7,1.9270744]
[1646760868219,5.24346,2596.5,2595.7,1.9270744]
[1646760868422,5.54346,2596.5,2595.7,1.9270744]
[1646760868621,2.89064,2596.4,2595.5,1.00377904]
[1646760868821,2.89064,2596.4,2595.5,1.47177904]
[1646760868822,1.92696,2596.2,2595.5,1.47177904]
[1646760869521,1.92696,2596.2,2595.7,1.9270744]
[1646760870374,1.92696,2596.2,2595.8,0.468]
[1646760870974,1.92696,2596.2,2595.9,0.9635322]
[1646760871478,1.92696,2596.2,2595.9,1.91071762]
[1646760871676,0.96343,2596.1,2595.9,1.91071762]
[1646760872078,0.96343,2596.1,2595.9,0.9635322]
[1646760872678,0.96343,2596.1,2595.7,1.9270744]
[1646760872679,0.91343,2596.1,2595.7,5.4270744]
[1646760872880,0.96347,2596.3,2595.8,3.968]
[1646760873085,0.96347,2596.3,2595.9,0.8779919]
[1646760873278,0.96347,2596.3,2596.0,0.468]
[1646760873680,1.92696,2596.2,2596.0,0.468]
[1646760874814,1.92696,2596.2,2595.7,0.468]
[1646760875319,1.92696,2596.2,2595.7,1.8207087]
[1646760875517,1.92696,2596.2,2595.7,1.4315087]
[1646760875518,0.3,2596.1,2595.7,1.4315087]
[1646760875723,1.92696,2596.2,2595.7,0.468]
[1646760875920,1.92696,2596.2,2595.8,0.00487857]
[1646760876120,1.92696,2596.2,2595.9,0.8572]
[1646760876321,1.92696,2596.2,2596.0,0.92064675]
[1646760876533,1.92696,2596.2,2596.1,0.468]
[1646760877520,1.92696,2596.2,2596.0,0.47287836]
[1646760878182,1.92696,2596.2,2596.1,0.88020273]
[1646760878383,1.92696,2596.2,2596.0,0.47287836]
[1646760878579,1.92696,2596.2,2596.0,0.468]
[1646760878977,1.92696,2596.2,2595.8,1.9267174]
[1646760879383,1.00868662,2596.0,2595.5,0.468]
[1646760879583,2.36146662,2596.0,2595.1,0.468]
[1646760879785,2.36146662,2596.0,2594.8,0.468]
[1646760879982,0.3892,2595.8,2594.6,4.0]
[1646760880288,1.97226662,2596.0,2594.7,0.468]
[1646760880289,1.92786,2595.6,2594.7,0.468]
[1646760880488,2.89179,2595.6,2595.2,1.20675882]
[1646760880685,3.19179,2595.6,2595.1,0.468]
[1646760880889,3.19179,2595.6,2595.1,0.47288]
[1646760881085,2.89179,2595.6,2595.1,0.47288]
[1646760881286,3.19179,2595.6,2595.1,0.47288]
[1646760881521,3.19179,2595.6,2595.2,1.095986]
[1646760881723,3.19179,2595.6,2595.3,1.095986]
[1646760881926,0.96393,2595.5,2594.2,4.0]
[1646760882127,0.96368,2595.3,2594.9,1.49560161]
[1646760882327,0.54052984,2595.4,2595.0,12.70926308]
[1646760882526,0.54052984,2595.4,2595.1,0.468]
[1646760882826,0.54052984,2595.4,2594.9,13.21196912]
[1646760882827,0.24052984,2595.4,2594.9,14.21196912]
[1646760883027,0.96366,2595.3,2594.9,14.21196912]
[1646760883325,1.87734,2595.3,2594.9,1.30196912]
[1646760884128,1.87734,2595.3,2594.9,1.69116912]
[1646760884326,1.87734,2595.3,2594.9,1.30196912]
[1646760884927,1.87734,2595.3,2594.9,3.22909122]
[1646760885175,1.87734,2595.3,2595.0,0.468]
[1646760885769,1.87734,2595.3,2595.0,0.00487228]
[1646760885967,1.87734,2595.3,2594.6,0.468]
[1646760885968,1.92774,2595.2,2594.6,0.468]
[1646760886170,1.92769,2595.1,2594.6,0.468]
[1646760886568,1.22743492,2594.7,2594.4,0.468]
[1646760886768,1.22743492,2594.7,2594.3,0.468]
[1646760886769,0.96394,2594.6,2594.3,0.468]
[1646760887169,0.96394,2594.6,2594.3,1.4318602]
[1646760887770,0.96394,2594.6,2594.3,1.62742771]
[1646760888269,0.96394,2594.6,2594.4,1.58191416]
[1646760888468,2.89153,2595.2,2594.6,11.91]
[1646760888671,2.89153,2595.2,2594.7,13.95969254]
[1646760888916,2.89153,2595.2,2594.8,13.95965131]
[1646760889116,2.89153,2595.2,2594.6,0.19556751]
[1646760889117,2.89153,2595.2,2595.0,0.8841496]
[1646760889315,2.89153,2595.2,2595.0,12.7941496]
[1646760889316,0.96366,2595.1,2595.0,12.7941496]
[1646760889515,0.96366,2595.1,2595.0,13.2621496]
[1646760889719,0.96366,2595.1,2595.0,14.84373042]
[1646760890117,0.96366,2595.1,2595.0,13.2621496]
[1646760890320,4.81815,2595.9,2595.0,16.03921431]
[1646760890522,4.79635769,2595.9,2595.5,0.48067941]
[1646760890722,0.91430109,2596.7,2595.8,0.9632739]
[1646760890922,0.91430109,2596.7,2595.9,0.468]
[1646760890923,3.85383,2596.4,2595.9,0.468]
[1646760891123,3.85383,2596.4,2595.9,0.418]
[1646760891426,0.96328,2596.5,2596.1,1.09596578]
[1646760891622,0.96328,2596.5,2596.3,1.09596578]
[1646760891822,0.96328,2596.5,2596.4,1.56396578]
[1646760892678,0.0570245,2596.9,2596.8,1.09596578]
[1646760892866,0.0570245,2596.9,2596.8,1.56396578]
[1646760898414,0.00243496,2597.0,2596.9,19.06296578]
[1646760898615,0.00243496,2597.0,2596.9,19.53096578]
[1646760898813,0.00243496,2597.0,2596.9,20.53096578]
[1646760899012,0.00243496,2597.0,2596.9,7.62096578]
[1646760899220,2.0331357,2597.3,2597.1,1.09596578]
[1646760899413,0.11908318,2597.2,2597.1,1.56396578]
[1646760900269,0.11908318,2597.2,2597.1,1.55396578]
[1646760901270,0.11908318,2597.2,2596.7,1.09596578]
[1646760901471,0.96321,2596.9,2596.7,1.09596578]
[1646760902269,0.96321,2596.9,2596.2,0.468]
[1646760902270,1.9264,2596.9,2596.8,1.09596578]
[1646760902471,0.96319,2596.9,2596.8,1.09596578]
[1646760902673,0.3,2596.9,2596.8,1.09596578]
[1646760903072,0.06220378,2597.0,2596.8,1.09596578]
[1646760903270,1.08174657,2596.9,2596.4,1.09596578]
[1646760903470,1.38174657,2596.9,2596.4,1.09596578]
[1646760904114,1.08174657,2596.9,2596.4,1.09596578]
[1646760904319,3.5,2596.8,2596.5,1.09596578]
[1646760904715,4.5,2596.8,2596.5,1.09596578]
[1646760904914,3.5,2596.8,2596.5,1.09596578]
[1646760905114,4.50399153,2596.8,2596.5,1.09596578]
[1646760905317,4.50399153,2596.8,2596.6,1.09596578]
[1646760905516,3.5,2596.7,2596.6,1.09596578]
[1646760905718,0.96747153,2596.8,2596.6,1.09596578]
[1646760906019,0.00399153,2596.8,2596.6,1.09596578]
[1646760906222,0.06220378,2597.0,2596.6,1.09596578]
[1646760906420,0.1164719,2597.4,2597.0,7.09596578]
[1646760906620,0.00941056,2597.3,2597.2,1.09596578]
[1646760906819,0.0947548,2597.7,2597.4,1.09596578]
[1646760907024,2.112e-05,2597.6,2597.5,22.97396578]
[1646760907220,2.112e-05,2597.6,2597.5,11.25953329]
[1646760907419,2.112e-05,2597.6,2597.5,7.75953329]
[1646760907971,2.112e-05,2597.6,2597.5,7.51396578]
[1646760908176,2.112e-05,2597.6,2597.5,1.56396578]
[1646760909178,2.112e-05,2597.6,2597.5,1.09596578]
[1646760909979,2.112e-05,2597.6,2597.3,0.154205]
[1646760910181,2.112e-05,2597.6,2597.5,1.09596578]
[1646760910979,2.112e-05,2597.6,2596.9,1.09596578]
[1646760911181,2.112e-05,2597.6,2597.0,0.00465835]
[1646760911418,1.35229112,2597.6,2597.0,0.00465835]
[1646760911820,0.95904061,2597.3,2597.0,0.00465835]
[1646760912226,0.95904061,2597.3,2597.0,1.10062413]
[1646760912423,0.95904061,2597.3,2597.0,1.09596578]
[1646760912424,1.92211061,2597.3,2597.0,1.09596578]
[1646760913224,1.92211061,2597.3,2597.1,1.09596578]
[1646760913423,1.92309304,2597.3,2597.1,1.09596578]
[1646760913622,0.00098243,2597.3,2597.1,1.09596578]
[1646760914025,0.9574731,2597.4,2597.1,1.09596578]
[1646760914226,0.9574731,2597.4,2597.2,1.09596578]
[1646760914628,1.08157732,2597.3,2597.2,1.09596578]
[1646760915295,1.08157732,2597.3,2596.3,1.1]
[1646760915296,0.96324,2597.2,2596.3,1.1]
[1646760915495,1.92676,2597.1,2596.3,1.1]
[1646760915795,2.22676,2597.1,2597.0,0.00480747]
[1646760915998,1.26339,2597.1,2597.0,0.00480747]
[1646760916998,1.26339,2597.1,2597.0,7.47e-06]
[1646760917198,1.26339,2597.1,2595.8,1.1]
[1646760917199,0.00079249,2596.9,2596.7,9.1e-05]
[1646760917402,1.92721,2596.8,2596.7,9.1e-05]
[1646760917599,3.1591517,2596.8,2596.7,9.1e-05]
[1646760917799,0.96376,2596.6,2595.8,1.1]
[1646760918001,0.9638,2596.5,2595.8,1.1]
[1646760918202,0.92969424,2595.9,2595.8,1.1]
[1646760919924,6.0,2595.8,2594.9,0.3848]
[1646760920119,6.0,2595.8,2594.5,0.5]
[1646760920321,7.0,2595.8,2594.6,0.61442048]
[1646760920523,0.96179385,2595.4,2594.8,0.61442048]
[1646760920724,0.96393,2595.3,2594.8,0.61442048]
[1646760921123,0.96393,2595.3,2594.9,0.61018136]
[1646760921923,0.96393,2595.3,2594.9,0.61385005]
[1646760922224,0.96393,2595.3,2595.0,0.61018136]
[1646760922426,1.92798,2595.3,2595.0,0.61018136]
[1646760922681,0.3,2595.4,2595.0,0.61018136]
[1646760922869,0.13819997,2595.5,2595.0,0.61018136]
[1646760922870,1.43819997,2595.5,2595.0,0.61018136]
[1646760923068,0.13819997,2595.5,2594.7,0.61018136]
[1646760923472,1.14924133,2595.5,2594.7,0.61018136]
[1646760923872,2.11317133,2595.5,2594.7,0.61018136]
[1646760924073,2.41317133,2595.5,2594.6,0.61018136]
[1646760924571,2.11317133,2595.5,2594.6,0.61018136]
[1646760924772,2.41317133,2595.5,2594.6,0.61018136]
[1646760925174,2.11317133,2595.5,2594.6,0.61018136]
[1646760925377,1.00659087,2595.0,2594.9,0.00366379]
[1646760925577,0.96405,2595.2,2594.9,0.00366379]
[1646760925578,0.3,2595.1,2594.9,0.00366379]
[1646760925977,0.13819997,2595.5,2594.9,0.00366379]
[1646760926925,0.13819997,2595.5,2595.2,0.61018136]
[1646760927721,1.10208997,2595.5,2594.9,0.00366386]
[1646760927918,2.06606997,2595.5,2595.2,0.00366336]
[1646760928120,2.36606997,2595.5,2595.2,0.00366336]
[1646760928323,5.36606997,2595.5,2595.2,0.00366336]
[1646760928720,6.36606997,2595.5,2595.2,0.00366336]
[1646760928926,1.92813,2595.4,2595.2,0.00366336]
[1646760929322,1.92813,2595.4,2595.2,0.00480371]
[1646760930273,3.0325304,2595.4,2595.2,0.00922957]
[1646760930474,3.0325304,2595.4,2595.2,0.00288357]
[1646760930475,0.96392,2595.3,2595.2,0.00288357]
[1646760931274,1.92782,2595.3,2594.8,0.56306493]
[1646760932872,1.92782,2595.3,2594.9,0.56306493]
[1646760933375,2.22782,2595.3,2594.9,0.56306493]
[1646760933920,2.22782,2595.3,2594.7,0.56306493]
[1646760934621,3.0,2595.2,2594.7,0.56306493]
[1646760934821,6.3892,2594.8,2593.5,3.5]
[1646760935020,6.3892,2594.8,2593.9,0.88036656]
[1646760935021,0.96428,2594.5,2593.9,0.88036656]
[1646760935423,0.96428,2594.5,2594.3,0.5]
[1646760935826,2.22856,2594.5,2594.3,0.5]
[1646760936224,1.92856,2594.5,2594.3,0.5]
[1646760936425,0.24157014,2594.5,2594.3,0.5]
[1646760936725,0.24157014,2594.5,2594.4,1.10102672]
[1646760937125,2.22855,2594.7,2594.4,1.10102672]
[1646760937126,0.96414,2594.7,2594.4,1.10102672]
[1646760937327,1.92828,2595.1,2594.4,1.10102672]
[1646760937690,0.13819997,2595.5,2594.6,0.3892]
[1646760937691,3.63819997,2595.5,2594.6,0.3892]
[1646760937875,9.2725,2596.1,2594.8,0.3892]
[1646760938071,14.3653,2596.6,2595.9,0.96543816]
[1646760938272,1.10406095,2596.7,2595.9,0.96543816]
[1646760938672,0.96369,2596.4,2595.9,0.96543816]
[1646760938872,1.92742,2596.3,2595.9,0.96543816]
[1646760939072,0.01525475,2596.0,2595.1,0.00480116]
[1646760939873,0.9637,2595.9,2595.1,0.00480116]
[1646760940074,0.9637,2595.9,2595.4,0.94311835]
[1646760940279,1.2637,2595.9,2595.4,0.94311835]
[1646760940878,0.9637,2595.9,2595.4,0.94311835]
[1646760942323,1.92771,2595.8,2594.7,3.5]
[1646760942524,1.92771,2595.8,2594.8,0.3892]
[1646760942525,0.96384,2595.6,2594.8,0.3892]
[1646760942724,0.3,2595.5,2594.6,5.1677]
[1646760942923,0.3,2595.5,2594.6,0.468]
[1646760943325,0.8945914,2595.3,2594.6,1.10867652]
[1646760943725,0.8945914,2595.3,2594.9,0.00479088]
[1646760944327,0.16958269,2596.0,2594.9,0.00479088]
[1646760944527,0.01521569,2596.0,2594.9,0.00479088]
[1646760945181,0.01521599,2596.0,2595.0,0.00479081]
[1646760945377,0.01521599,2596.0,2595.4,1.0703988]
[1646760945576,0.01521599,2596.0,2595.0,0.00479081]
[1646760945782,0.96383,2595.9,2595.0,0.00479081]
[1646760945977,0.96383,2595.9,2595.1,0.00364902]
[1646760946179,0.3,2595.9,2595.1,0.00364902]
[1646760946778,1.91079646,2596.1,2595.1,0.00364902]
[1646760946779,1.21079646,2596.1,2595.1,0.92164142]
[1646760946979,2.89203,2595.7,2595.1,0.92164142]
[1646760947281,5.33313161,2595.7,2595.1,0.00364902]
[1646760947482,5.36915161,2595.7,2595.1,0.00364902]
[1646760947883,4.49203,2595.7,2595.1,0.00364902]
[1646760948081,0.96398,2595.6,2595.1,0.00364902]
[1646760948285,0.96403,2595.4,2595.1,0.00364902]
[1646760948484,0.96403,2595.4,2595.1,0.00464904]
[1646760948920,0.96403,2595.4,2595.3,0.92246182]
[1646760949519,0.96403,2595.4,2595.1,0.00464904]
[1646760949723,5.55225171,2596.0,2595.1,0.00464898]
[1646760949724,0.01496953,2596.0,2595.1,0.00464898]
[1646760949928,11.91,2596.8,2595.8,9.63851]
[1646760950120,6.12656,2596.8,2596.4,0.24970471]
[1646760950323,0.6271517,2596.7,2596.4,0.24970471]
[1646760950526,0.6271517,2596.7,2596.2,2.89189]
[1646760950527,0.3892,2596.7,2596.2,2.89189]
[1646760950723,2.78179637,2596.8,2596.4,0.136259]
[1646760950724,2.89165,2596.5,2596.4,0.136259]
[1646760950926,3.35965,2596.5,2596.4,0.136259]
[1646760951123,0.1591517,2596.5,2596.2,3.19189]
[1646760951526,9.74751945,2597.1,2596.2,3.19189]
[1646760951724,0.468,2597.0,2596.2,3.19189]
[1646760951923,0.8673951,2596.9,2596.2,4.1945207]
[1646760952124,0.468,2596.8,2596.7,1.09311082]
[1646760952327,3.17624455,2597.1,2596.7,1.09311082]
[1646760952528,8.34220909,2597.4,2596.7,1.09311082]
[1646760952973,6.0,2597.3,2596.6,21.50412]
[1646760953172,0.21769,2597.3,2597.0,1.15179423]
[1646760953375,0.9637,2597.1,2597.0,1.15179423]
[1646760953676,4.07248,2597.3,2596.8,0.96383]
[1646760953677,0.9636,2597.3,2596.8,2.11546423]
[1646760953873,0.9636,2597.3,2596.8,2.41546423]
[1646760954078,0.9636,2597.3,2596.7,0.3]
[1646760954277,0.15473075,2597.2,2595.4,1.9278118]
[1646760954479,0.94755675,2597.2,2595.4,1.9278118]
[1646760954674,0.96397,2597.1,2596.2,19.27658]
[1646760954875,0.96397,2597.1,2596.8,0.96383]
[1646760954876,9.08512728,2597.1,2596.8,0.96383]
[1646760955077,1.5412378,2596.4,2595.2,0.3854]
[1646760955280,0.3892,2596.2,2594.2,9.5384791]
[1646760955484,12.2992,2595.8,2594.2,7.36]
[1646760955679,0.3892,2595.8,2594.4,3.0]
[1646760955880,1.0,2595.9,2595.2,1.18036603]
[1646760955881,2.89316,2595.6,2595.2,1.18036603]
[1646760956078,0.468,2595.5,2595.2,1.18036603]
[1646760956285,0.21489,2595.4,2594.7,3.5]
[1646760956521,1.92877,2595.5,2595.2,3.85657]
[1646760956919,0.468,2596.1,2595.3,2.89227]
[1646760956920,3.36096,2596.1,2595.3,2.89227]
[1646760957119,3.97668307,2596.3,2595.7,0.94240723]
[1646760957322,0.468,2596.2,2595.3,3.19671145]
[1646760957620,0.468,2596.2,2595.3,3.49671145]
[1646760958020,0.468,2596.2,2595.7,0.96408]
[1646760958422,0.96409,2596.0,2595.7,0.96408]
[1646760958621,1.26409,2596.0,2595.7,0.96408]
[1646760959023,1.26409,2596.0,2595.7,1.92817]
[1646760959222,1.4132763,2595.9,2595.7,3.5]
[1646760959424,2.89206,2595.9,2595.7,0.00345963]
[1646760959823,0.19822599,2596.4,2595.7,0.00345963]
[1646760960024,0.19822599,2596.4,2595.8,3.85677807]
[1646760960276,1.14828439,2597.0,2596.3,1.17475168]
[1646760960475,1.14828439,2597.0,2595.8,3.49145]
[1646760960476,0.768,2597.0,2595.8,3.49145]
[1646760960679,0.768,2597.0,2595.8,2.89145]
[1646760960876,1.8818363,2596.5,2595.8,2.89145]
[1646760961076,1.8818363,2596.6,2595.8,2.89145]
[1646760961277,0.68028439,2597.0,2595.8,2.89145]
[1646760961278,1.8818363,2596.5,2595.8,2.89145]
[1646760961484,1.8818363,2596.5,2596.0,3.8558]
[1646760961485,0.9638,2596.4,2596.0,3.8558]
[1646760961683,3.3136363,2596.4,2595.9,0.96384]
[1646760961978,2.89209,2596.2,2595.9,0.96384]
[1646760962178,5.2419263,2596.2,2595.9,0.96384]
[1646760962378,6.2419263,2596.2,2595.9,0.96384]
[1646760962578,0.4578763,2596.2,2596.0,0.96392]
[1646760962979,0.4578763,2596.2,2596.0,3.8558]
[1646760963181,0.00366028,2596.2,2596.0,3.8558]
[1646760963380,2.89575028,2596.2,2596.0,3.8558]
[1646760963581,2.89575028,2596.2,2595.8,2.89626741]
[1646760964221,2.53881636,2596.4,2596.0,4.98959973]
[1646760964422,1.0,2596.2,2596.0,4.98959973]
[1646760964624,1.9638,2596.4,2596.0,4.98959973]
[1646760964823,0.9638,2596.4,2596.1,2.89148]
[1646760965424,2.89209,2596.2,2596.1,2.89148]
[1646760965624,0.57192103,2596.6,2596.1,3.45763635]
[1646760966424,2.89209,2596.2,2596.1,3.45763635]
[1646760966629,0.57192103,2596.6,2596.1,3.45763635]
[1646760967224,0.57192103,2596.6,2596.1,4.42145735]
[1646760967426,2.89209,2596.2,2596.1,4.42145735]
[1646760967674,0.57192103,2596.6,2596.1,4.42145735]
[1646760967877,0.622372,2596.7,2596.5,0.56615635]
[1646760967878,0.154372,2596.7,2596.5,0.56615635]
[1646760968178,0.01459167,2596.9,2596.5,3.45740635]
[1646760968374,1.92766,2596.7,2596.5,3.75740635]
[1646760968582,0.3,2597.0,2596.5,3.75740635]
[1646760968875,5.93337483,2597.2,2597.0,0.56615635]
[1646760969083,5.93337483,2597.2,2596.8,1.65383469]
[1646760969084,11.91,2596.9,2596.8,1.65383469]
[1646760969287,14.49479201,2596.9,2596.8,1.65383469]
[1646760969475,16.85561566,2596.9,2596.8,1.65383469]
[1646760969679,16.85561566,2596.9,2595.7,3.85594]
[1646760969680,16.85566927,2596.9,2595.7,3.85594]
[1646760969879,1.88872353,2596.4,2596.3,0.05660674]
[1646760970077,2.35672353,2596.4,2596.3,0.05660674]
[1646760970278,14.91,2596.3,2596.2,0.96403]
[1646760970478,15.378,2596.3,2596.0,0.22727401]
[1646760970678,15.378,2596.3,2595.8,2.89214]
[1646760970679,17.91,2596.1,2595.8,2.89214]
[1646760970879,0.468,2596.0,2595.8,2.89214]
[1646760971278,0.96384338,2595.9,2595.7,3.85594]
[1646760971524,0.468,2596.0,2595.7,3.85594]
[1646760971525,0.468,2595.8,2595.7,3.85594]
[1646760971721,0.468,2595.8,2595.7,3.99747909]
[1646760971930,6.0,2595.7,2595.6,3.85674]
[1646760972227,19.378,2595.7,2595.6,3.85674]
[1646760972425,19.378,2595.7,2595.2,0.96309]
[1646760972623,19.65597001,2595.7,2595.2,0.96309]
[1646760972823,21.5449728,2595.7,2595.5,0.00481211]
[1646760973027,4.0,2595.5,2594.3,3.5]
[1646760973232,4.0,2595.5,2594.7,0.9644]
[1646760973233,0.9644,2595.2,2594.7,0.9644]
[1646760973628,0.9644,2595.2,2594.8,1.1]
[1646760974232,1.97470635,2595.2,2594.9,1.1]
[1646760974631,1.97470635,2595.2,2594.8,1.92872]
[1646760974632,11.91,2595.0,2594.8,1.92872]
[1646760974830,3.39711,2595.0,2594.8,1.92872]
[1646760975276,3.551569,2595.0,2594.8,1.92872]
[1646760975476,1.17587317,2594.9,2594.8,1.92872]
[1646760977877,1.17587317,2594.9,2594.7,2.23253871]
[1646760978280,2.14041317,2594.9,2594.7,2.23253871]
[1646760978479,2.14041317,2594.9,2594.8,1.92872]
[1646760978681,2.14041317,2594.9,2594.8,2.22872]
[1646760978955,1.92911,2595.0,2594.8,2.22872]
[1646760979144,1.92911,2595.0,2594.9,1.23054486]
[1646760979345,1.58432445,2595.0,2594.9,1.23054486]
[1646760979748,1.41521711,2595.7,2595.2,0.96418]
[1646760979947,1.41521711,2595.8,2595.2,2.8926]
[1646760980249,1.41521711,2595.8,2595.2,3.1926]
[1646760980647,0.90382843,2595.5,2595.2,3.1926]
[1646760980947,2.83224843,2595.5,2595.2,3.1926]
[1646760981149,2.83224843,2595.5,2595.4,0.00456633]
[1646760981349,2.0,2595.4,2595.2,3.1926]
[1646760981548,2.468,2595.4,2595.2,3.1926]
[1646760981949,2.39675,2595.4,2595.2,3.1926]
[1646760983076,2.92842,2595.5,2595.2,3.1926]
[1646760983274,0.154421,2595.4,2595.2,3.1926]
[1646760983574,5.02855248,2595.7,2595.2,3.1926]
[1646760983774,0.468,2595.6,2595.2,3.1926]
[1646760984174,5.02855248,2595.7,2595.2,3.1926]
[1646760984393,1.92875,2595.4,2595.2,3.1926]
[1646760984879,0.468,2595.6,2595.3,0.00372584]
[1646760985076,0.40272936,2595.4,2595.1,4.82099]
[1646760985277,1.0,2595.5,2595.1,4.82099]
[1646760985478,1.0,2595.5,2595.2,1.92842]
[1646760985678,1.88321711,2595.6,2595.2,1.92842]
[1646760985978,1.41521711,2595.4,2595.1,4.30612571]
[1646760986183,16.68694711,2595.3,2595.1,4.30612571]
[1646760986430,1.41521711,2595.2,2595.1,4.30612571]
[1646760986621,1.41521711,2595.2,2594.6,2.37565571]
[1646760986622,1.88321711,2595.2,2594.6,2.37565571]
[1646760986821,0.96457,2595.1,2594.5,3.8569]
[1646760987022,0.96457,2595.1,2595.0,1.92921]
[1646760987227,4.36173,2595.3,2595.0,2.22921]
[1646760987424,5.27360711,2595.5,2595.0,2.22921]
[1646760987622,0.468,2595.4,2595.0,2.22921]
[1646760988023,1.07086128,2595.3,2595.0,2.22921]
[1646760988223,2.95407839,2595.3,2595.1,2.89307]
[1646760988423,1.88321711,2595.3,2595.1,2.89307]
[1646760988622,2.8937,2595.2,2595.1,3.85746]
[1646760988825,3.3617,2595.2,2595.1,4.15746]
[1646760989026,1.41521711,2595.4,2595.1,4.15746]
[1646760989227,1.0,2595.2,2595.1,0.3]
[1646760989528,0.468,2595.2,2595.1,0.3]
[1646760989726,1.41521711,2595.3,2595.0,1.93402362]
[1646760989930,0.468,2595.1,2595.0,1.93402362]
[1646760990171,0.20141655,2595.2,2595.0,1.93402362]
[1646760990375,0.96445,2595.3,2595.0,1.93402362]
[1646760990779,0.96445,2595.3,2595.0,1.92921]
[1646760991178,1.118903,2595.3,2595.0,2.22921]
[1646760991376,0.96445,2595.3,2595.0,2.22921]
[1646760992176,0.96445,2595.3,2594.9,0.96438]
[1646760992177,2.8937,2595.2,2594.9,0.96438]
[1646760992578,3.8937,2595.2,2594.9,0.96438]
[1646760992775,3.8937,2595.2,2594.8,0.96445]